bitfinex/quotes_BTCUSD_20240906
["timestamp","ask_amount","ask_price","bid_price","bid_amount"]
[1725641521287,0.00064416,54070.0,54069.0,0.3492]
[1725641521504,0.00064416,54070.0,54069.0,0.90774333]
[1725641521720,0.00064416,54070.0,54069.0,1.65299272]
[1725641521938,0.00064416,54070.0,54069.0,2.04219139]
[1725641522160,0.00064416,54070.0,54069.0,0.747748]
[1725641522391,0.00064416,54070.0,54069.0,1.48534639]
[1725641522602,0.00064416,54070.0,54069.0,0.745748]
[1725641522817,0.00064416,54070.0,54069.0,0.3702]
[1725641523032,0.00064416,54070.0,54069.0,0.3472]
[1725641523251,0.37053416,54070.0,54069.0,0.3472]
[1725641523477,0.184955,54067.0,54066.0,0.005]
[1725641523740,0.184996,54055.0,54054.0,0.3797]
[1725641523952,0.554989,54055.0,54054.0,0.3797]
[1725641524169,0.554989,54055.0,54048.0,0.3797]
[1725641524170,0.369993,54055.0,54048.0,0.3797]
[1725641524393,0.185005,54053.0,54048.0,0.3797]
[1725641524603,0.185011,54051.0,54048.0,0.3797]
[1725641524823,0.184978,54061.0,54049.0,0.00370006]
[1725641525096,0.002,54067.0,54062.0,0.184971]
[1725641525313,0.554896,54064.0,54063.0,0.3497]
[1725641525745,0.554896,54064.0,54063.0,0.3477]
[1725641525951,0.924827,54064.0,54063.0,0.3497]
[1725641526170,0.369979,54057.0,54053.0,0.3817]
[1725641526446,0.10064416,54070.0,54046.0,0.3817]
[1725641526447,0.185024,54047.0,54046.0,0.3817]
[1725641526653,0.185015,54050.0,54046.0,0.3817]
[1725641526882,0.185016,54050.0,54046.0,0.3817]
[1725641527118,0.1817,54051.0,54050.0,4e-05]
[1725641527342,0.1,54060.0,54050.0,4e-05]
[1725641527571,0.369982,54057.0,54051.0,0.002]
[1725641527790,0.1,54060.0,54050.0,4e-05]
[1725641527791,0.469965,54060.0,54056.0,0.002]
[1725641528004,0.184987,54058.0,54057.0,0.002]
[1725641528219,0.554959,54058.0,54057.0,0.002]
[1725641528432,0.55503,54051.0,54050.0,0.00204]
[1725641528650,0.92505,54051.0,54050.0,0.00804]
[1725641528867,1.29507,54051.0,54050.0,0.00804]
[1725641529099,1.29507,54051.0,54050.0,4e-05]
[1725641529524,1.66509,54051.0,54050.0,4e-05]
[1725641529737,1.76509,54051.0,54050.0,4e-05]
[1725641529955,1.39507,54051.0,54050.0,4e-05]
[1725641530831,1.76509,54051.0,54050.0,4e-05]
[1725641531059,2.13511,54051.0,54050.0,4e-05]
[1725641531288,2.51513,54051.0,54050.0,0.00804]
[1725641531528,2.51513,54051.0,54020.0,0.0193283]
[1725641531529,0.555339,54021.0,54020.0,0.0193283]
[1725641531748,0.1932,54032.0,54019.0,0.55430836]
[1725641531749,0.555349,54020.0,54019.0,0.55430836]
[1725641531972,0.370253,54017.0,54016.0,0.55430836]
[1725641532194,0.185144,54012.0,54011.0,0.002]
[1725641532410,0.185144,54012.0,54001.0,0.074216]
[1725641532411,0.185162,54007.0,54003.0,0.384]
[1725641532637,0.1,54026.0,54003.0,0.384]
[1725641532638,0.4781,54021.0,54003.0,0.384]
[1725641533073,0.1,54021.0,54005.0,0.370334]
[1725641533075,0.1,54021.0,54010.0,0.185148]
[1725641533293,0.370279,54014.0,54006.0,0.03715]
[1725641533528,0.55539,54016.0,54015.0,0.002]
[1725641533770,0.1,54021.0,54015.0,0.002]
[1725641533771,0.185128,54017.0,54015.0,0.002]
[1725641533986,0.370236,54020.0,54015.0,0.002]
[1725641534238,0.18513,54016.0,54011.0,0.001]
[1725641534480,0.470195,54026.0,54011.0,0.001]
[1725641534481,1.296008,54012.0,54011.0,0.001]
[1725641534730,0.555504,54005.0,54004.0,0.002]
[1725641534955,0.1,54015.0,54003.0,0.384]
[1725641534956,0.185171,54004.0,54003.0,0.384]
[1725641535193,0.555544,54001.0,54000.0,4e-05]
[1725641535418,0.185181,54001.0,54000.0,4e-05]
[1725641535630,0.370351,54003.0,54000.0,4e-05]
[1725641535845,0.185181,54001.0,54000.0,4e-05]
[1725641536049,0.1944,54013.0,54000.0,4e-05]
[1725641536050,0.370309,54009.0,54000.0,4e-05]
[1725641536263,0.185181,54001.0,54000.0,4e-05]
[1725641536703,0.185172,54004.0,54000.0,4e-05]
[1725641536917,0.1972,54020.0,54000.0,4e-05]
[1725641537141,0.1972,54020.0,54001.0,0.37036]
[1725641537357,0.3781,54027.0,54002.0,0.35080261]
[1725641537569,0.370241,54019.0,54002.0,0.35080261]
[1725641537779,0.185131,54016.0,54015.0,0.002]
[1725641538013,0.1972,54028.0,54018.0,0.002]
[1725641538224,0.02,54040.0,54021.0,0.185112]
[1725641538225,0.1902,54036.0,54021.0,0.185112]
[1725641538454,0.1902,54036.0,54019.0,0.3575]
[1725641538455,0.37014,54034.0,54029.0,0.002]
[1725641538670,0.555246,54030.0,54029.0,0.002]
[1725641538889,0.370125,54036.0,54031.0,0.002]
[1725641539112,0.1992,54049.0,54037.0,0.3577]
[1725641539576,0.95174396,54060.0,54038.0,0.023]
[1725641539577,0.555154,54039.0,54038.0,0.023]
[1725641539809,0.185091,54028.0,54026.0,0.3577]
[1725641540030,0.47374396,54044.0,54027.0,0.57730836]
[1725641540031,0.370169,54030.0,54027.0,0.57730836]
[1725641540249,0.185064,54036.0,54030.0,0.185081]
[1725641540475,0.185063,54036.0,54031.0,0.023]
[1725641540720,0.185063,54036.0,54031.0,0.208077]
[1725641540908,0.185063,54036.0,54035.0,0.002]
[1725641541130,0.370091,54041.0,54039.0,0.002]
[1725641541131,0.555146,54040.0,54039.0,0.002]
[1725641541350,0.925242,54040.0,54039.0,0.002]
[1725641541565,0.655146,54040.0,54039.0,0.002]
[1725641541778,0.555174,54037.0,54036.0,0.002]
[1725641542230,0.555174,54037.0,54031.0,0.028]
[1725641542231,0.185061,54036.0,54035.0,0.002]
[1725641542458,0.185106,54023.0,54022.0,0.002]
[1725641542680,0.370157,54032.0,54022.0,0.002]
[1725641542954,0.37013,54035.0,54023.0,0.185104]
[1725641543166,0.1,54036.0,54022.0,0.002]
[1725641543167,0.1,54034.0,54022.0,0.002]
[1725641543393,0.185093,54027.0,54026.0,0.002]
[1725641543620,0.1,54034.0,54031.0,0.002]
[1725641543845,0.185078,54032.0,54031.0,0.002]
[1725641544077,0.555229,54032.0,54031.0,0.002]
[1725641544594,0.92538,54032.0,54031.0,0.002]
[1725641544804,0.555229,54032.0,54031.0,0.002]
[1725641545023,0.1,54034.0,54029.0,0.002]
[1725641545024,0.555246,54030.0,54029.0,0.002]
[1725641545245,0.925445,54028.0,54027.0,0.023]
[1725641545465,0.925445,54028.0,54018.0,0.002]
[1725641545466,0.55536,54019.0,54018.0,0.002]
[1725641545697,0.370207,54024.0,54014.0,0.3832]
[1725641545948,0.370207,54024.0,54005.0,0.4697]
[1725641545949,0.185144,54012.0,54011.0,0.00163]
[1725641546158,0.92572,54012.0,54011.0,0.00163]
[1725641546380,1.396008,54012.0,54011.0,0.00163]
[1725641546598,1.02572,54012.0,54011.0,0.00163]
[1725641547266,1.396008,54012.0,54011.0,0.00163]
[1725641547716,2.22675196,54012.0,54011.0,0.00163]
[1725641547976,2.59703996,54012.0,54011.0,0.00163]
[1725641548435,2.79583996,54012.0,54011.0,0.00163]
[1725641548648,2.79683996,54012.0,54011.0,0.00763]
[1725641550486,2.79583996,54012.0,54011.0,0.00163]
[1725641550706,2.322096,54012.0,54011.0,0.00163]
[1725641550931,1.396008,54012.0,54011.0,0.00163]
[1725641551143,1.408008,54012.0,54011.0,0.00263]
[1725641551370,1.308008,54012.0,54011.0,0.00263]
[1725641551594,2.18619853,54012.0,54011.0,0.00163]
[1725641551812,2.93638653,54012.0,54011.0,0.00163]
[1725641552024,2.99544115,54012.0,54011.0,0.00263]
[1725641552505,3.09544115,54012.0,54011.0,0.00263]
[1725641552950,2.18525062,54012.0,54011.0,0.00263]
[1725641553166,2.65899458,54012.0,54011.0,0.00263]
[1725641553391,3.01728258,54012.0,54011.0,0.00163]
[1725641553632,1.29627,54001.0,54000.0,4e-05]
[1725641553868,1.29627,54001.0,53989.0,0.001632]
[1725641553869,0.04655857,54000.0,53989.0,0.001632]
[1725641554080,1.676612,53992.0,53989.0,0.001632]
[1725641554299,1.766912,53992.0,53989.0,0.001632]
[1725641554520,1.396487,53992.0,53989.0,0.001632]
[1725641555030,1.026062,53992.0,53989.0,0.001632]
[1725641555270,1.396487,53992.0,53989.0,0.001632]
[1725641556218,1.766912,53992.0,53989.0,0.001632]
[1725641556439,1.396487,53992.0,53989.0,0.001632]
[1725641556650,1.406487,53992.0,53990.0,0.023]
[1725641556856,1.036062,53992.0,53990.0,0.023]
[1725641557068,1.026062,53992.0,53990.0,0.023]
[1725641557508,1.396487,53992.0,53990.0,0.023]
[1725641557723,1.766912,53992.0,53990.0,0.023]
[1725641557933,1.396487,53992.0,53990.0,0.023]
[1725641558897,0.1911,54013.0,54001.0,0.002]
[1725641559118,0.28383541,54002.0,54001.0,0.0023]
[1725641559340,0.28383541,54002.0,54001.0,0.0003]
[1725641559341,0.83936941,54002.0,54001.0,0.0003]
[1725641559561,1.02454741,54002.0,54001.0,0.0003]
[1725641559776,0.925907,54001.0,54000.0,0.0003]
[1725641560016,1.29627,54001.0,54000.0,0.0003]
[1725641560219,0.925907,54001.0,54000.0,0.0003]
[1725641561082,0.09296384,54056.0,53999.0,0.002]
[1725641561083,0.370319,54008.0,54005.0,0.0003]
[1725641561297,0.185164,54006.0,54005.0,0.0233]
[1725641561516,0.740639,54008.0,54007.0,0.002]
[1725641561725,0.555493,54006.0,54005.0,0.0253]
[1725641561977,0.925822,54006.0,54005.0,0.0253]
[1725641562881,1.296151,54006.0,54005.0,0.0233]
[1725641563098,0.555493,54006.0,54005.0,0.0233]
[1725641563317,0.925822,54006.0,54005.0,0.0233]
[1725641563535,1.296151,54006.0,54005.0,0.0233]
[1725641563960,0.927822,54006.0,54005.0,0.0233]
[1725641564189,0.47374396,54019.0,54005.0,0.0233]
[1725641564190,0.04655857,54028.0,54022.0,0.0003]
[1725641564407,0.1965,54039.0,54024.0,0.47404396]
[1725641564408,0.02721503,54037.0,54024.0,0.47404396]
[1725641564638,0.566558,54046.0,54031.0,0.3707]
[1725641564867,0.02662841,54040.0,54031.0,0.371]
[1725641565146,0.0197,54060.0,54033.0,0.0023]
[1725641565147,0.370062,54045.0,54033.0,0.0023]
[1725641565363,0.555205,54034.0,54033.0,0.0003]
[1725641566004,0.555205,54034.0,54033.0,0.0023]
[1725641566230,0.555205,54034.0,54033.0,0.0003]
[1725641566455,0.185055,54038.0,54033.0,0.0003]
[1725641566678,0.185054,54038.0,54037.0,0.0003]
[1725641566896,0.000815,54050.0,54048.0,0.0003]
[1725641567111,0.555051,54049.0,54048.0,0.0003]
[1725641567325,0.555051,54049.0,54048.0,0.0023]
[1725641567796,0.000815,54050.0,54048.0,0.0023]
[1725641568021,0.000815,54050.0,54049.0,0.3639]
[1725641568252,0.185828,54050.0,54049.0,0.3619]
[1725641568486,0.925882,54050.0,54049.0,0.3849]
[1725641568701,0.555855,54050.0,54049.0,0.3849]
[1725641569364,0.185828,54050.0,54049.0,0.3849]
[1725641569591,0.555855,54050.0,54049.0,0.3849]
[1725641569810,0.925882,54050.0,54049.0,0.023]
[1725641570021,0.370034,54049.0,54044.0,0.0003]
[1725641570292,0.370034,54049.0,54044.0,0.0023]
[1725641570293,0.555091,54045.0,54044.0,0.0023]
[1725641570509,0.555091,54045.0,54044.0,0.0003]
[1725641570927,0.925152,54045.0,54044.0,0.0003]
[1725641571140,0.925152,54045.0,54044.0,0.0013]
[1725641571830,0.555091,54045.0,54044.0,0.0013]
[1725641572048,0.381039,54049.0,54044.0,0.0013]
[1725641572275,0.011,54049.0,54048.0,0.0023]
[1725641572489,0.011,54049.0,54048.0,0.3893]
[1725641572707,0.000815,54050.0,54049.0,0.002]
[1725641572924,0.000815,54050.0,54049.0,0.0023]
[1725641573140,0.000815,54050.0,54049.0,0.0253]
[1725641574641,0.555855,54050.0,54049.0,0.0253]
[1725641574862,0.925882,54050.0,54049.0,0.023]
[1725641575080,0.925882,54050.0,54048.0,0.002]
[1725641575081,0.555051,54049.0,54048.0,0.002]
[1725641575317,1.395119,54049.0,54048.0,0.002]
[1725641575777,1.395119,54049.0,54047.0,0.0003]
[1725641575778,0.18502,54048.0,54047.0,0.0003]
[1725641576217,0.555061,54048.0,54047.0,0.0003]
[1725641576864,0.925102,54048.0,54047.0,0.0003]
[1725641577090,0.925102,54048.0,54042.0,0.3774]
[1725641577091,0.555112,54043.0,54042.0,0.3777]
[1725641577307,0.555112,54043.0,54042.0,0.4027]
[1725641577730,0.925187,54043.0,54042.0,0.4027]
[1725641577913,0.555112,54043.0,54042.0,0.4007]
[1725641578180,0.555112,54043.0,54042.0,0.0233]
[1725641578405,0.000815,54050.0,54049.0,0.5723]
[1725641578634,0.000815,54050.0,54049.0,1.62409496]
[1725641578847,0.000815,54050.0,54049.0,2.54891535]
[1725641579066,0.000815,54050.0,54049.0,2.55633035]
[1725641579944,0.000815,54050.0,54049.0,2.59348035]
[1725641580623,0.000815,54050.0,54049.0,0.639865]
[1725641580842,0.000815,54050.0,54049.0,0.3767]
[1725641581059,0.001815,54050.0,54049.0,0.3887]
[1725641581280,0.001815,54050.0,54049.0,0.943751]
[1725641581497,0.001815,54050.0,54049.0,1.301785]
[1725641581498,0.000815,54050.0,54049.0,1.301785]
[1725641581946,0.000815,54050.0,54049.0,1.306785]
[1725641582129,0.000815,54050.0,54049.0,0.936751]
[1725641582385,0.000815,54050.0,54049.0,1.324785]
[1725641582601,0.000815,54050.0,54049.0,2.17056296]
[1725641582820,0.001815,54050.0,54049.0,1.81452896]
[1725641583036,0.001815,54050.0,54049.0,1.44449496]
[1725641583276,0.001815,54050.0,54049.0,1.85167896]
[1725641583541,0.001815,54050.0,54049.0,2.18178135]
[1725641583769,0.001815,54050.0,54049.0,2.55181535]
[1725641583995,0.000815,54050.0,54049.0,3.03781535]
[1725641584253,0.000815,54050.0,54049.0,3.04781535]
[1725641584254,0.001815,54050.0,54049.0,3.04781535]
[1725641584470,0.184952,54068.0,54067.0,0.0003]
[1725641585124,0.92476,54068.0,54067.0,0.0003]
[1725641585556,0.369945,54062.0,54061.0,0.0003]
[1725641585772,0.369907,54068.0,54061.0,0.185275]
[1725641585985,0.184961,54066.0,54065.0,0.0003]
[1725641586188,0.184955,54067.0,54065.0,0.0003]
[1725641586394,0.184959,54066.0,54065.0,0.0003]
[1725641586612,0.370907,54068.0,54060.0,0.369953]
[1725641586613,0.185954,54068.0,54067.0,0.0003]
[1725641587043,0.925762,54068.0,54067.0,0.0003]
[1725641587254,0.925762,54068.0,54060.0,0.184978]
[1725641587255,0.001,54068.0,54060.0,0.0003]
[1725641587490,0.001,54068.0,54059.0,0.002]
[1725641587491,0.1,54067.0,54064.0,0.0003]
[1725641587723,0.001,54068.0,54064.0,0.0003]
[1725641587954,0.554887,54065.0,54064.0,0.0003]
[1725641588194,0.18496,54066.0,54065.0,0.005]
[1725641588429,0.654878,54066.0,54065.0,0.005]
[1725641588680,0.654878,54066.0,54064.0,0.0003]
[1725641588681,0.554887,54065.0,54064.0,0.0003]
[1725641588921,0.924812,54065.0,54064.0,0.0003]
[1725641589154,0.184972,54062.0,54061.0,0.0023]
[1725641589632,0.184972,54062.0,54059.0,0.0023]
[1725641589633,0.554938,54060.0,54059.0,0.0023]
[1725641589855,1.294856,54060.0,54059.0,0.0003]
[1725641590067,0.369946,54062.0,54059.0,0.0003]
[1725641590277,0.924897,54060.0,54059.0,0.0003]
[1725641590948,1.294856,54060.0,54059.0,0.0003]
[1725641591180,0.554949,54059.0,54058.0,0.0003]
[1725641591397,0.185,54054.0,54053.0,0.002]
[1725641591622,0.185,54054.0,54053.0,0.0023]
[1725641591623,0.555,54054.0,54053.0,0.0023]
[1725641591834,0.925,54054.0,54053.0,0.0023]
[1725641592266,0.555,54054.0,54053.0,0.0023]
[1725641592492,0.925,54054.0,54053.0,0.0023]
[1725641593152,0.369974,54058.0,54054.0,0.002]
[1725641593370,0.184993,54056.0,54054.0,0.0253]
[1725641593592,0.184996,54055.0,54054.0,0.0233]
[1725641593827,0.925,54054.0,54053.0,0.0023]
[1725641594039,1.295,54054.0,54053.0,0.0023]
[1725641594718,0.925,54054.0,54053.0,0.0043]
[1725641594962,0.925,54054.0,54053.0,0.0023]
[1725641594963,0.555,54054.0,54053.0,0.0023]
[1725641595190,0.369977,54058.0,54053.0,0.0283]
[1725641595432,0.28499,54057.0,54054.0,0.023]
[1725641595669,0.28499,54057.0,54055.0,0.3844]
[1725641595908,0.284992,54057.0,54056.0,0.023]
[1725641596135,0.1987,54065.0,54059.0,0.0003]
[1725641596136,0.369937,54064.0,54059.0,0.0003]
[1725641596382,0.469933,54064.0,54059.0,0.0003]
[1725641596602,0.1,54063.0,54059.0,0.0003]
[1725641596860,0.36995,54062.0,54059.0,0.0003]
[1725641597103,0.184979,54060.0,54059.0,0.0003]
[1725641597295,0.184975,54062.0,54059.0,0.0003]
[1725641597549,0.469941,54063.0,54059.0,0.0003]
[1725641597778,1.294856,54060.0,54059.0,0.0003]
[1725641598243,1.294881,54059.0,54058.0,0.0003]
[1725641599265,0.58249876,54059.0,54058.0,0.0003]
[1725641599517,0.95246476,54059.0,54058.0,0.0003]
[1725641599655,0.739958,54057.0,54055.0,0.0003]
[1725641599862,0.02754976,54059.0,54050.0,0.00034]
[1725641599863,0.55503,54051.0,54050.0,0.00034]
[1725641600157,0.008,54059.0,54058.0,1.45763]
[1725641600369,0.008,54059.0,54058.0,2.54063869]
[1725641600633,0.3851,54086.0,54058.0,2.54063869]
[1725641600634,0.02731993,54081.0,54075.0,0.3605]
[1725641600878,0.184911,54080.0,54075.0,0.3605]
[1725641601098,0.3851,54086.0,54075.0,0.3605]
[1725641601099,0.37682,54092.0,54079.0,0.0003]
[1725641601308,0.02749896,54082.0,54079.0,0.0003]
[1725641601533,0.369787,54086.0,54079.0,0.0003]
[1725641601534,0.184908,54081.0,54079.0,0.0003]
[1725641601751,0.00082,54092.0,54086.0,0.0023]
[1725641601971,0.00082,54092.0,54086.0,0.18719]
[1725641602202,0.00082,54092.0,54086.0,0.21019]
[1725641602429,0.00082,54092.0,54086.0,0.579971]
[1725641603154,0.00082,54092.0,54086.0,1.498052]
[1725641603380,0.00082,54092.0,54086.0,1.501052]
[1725641603815,0.00082,54092.0,54086.0,1.128271]
[1725641604039,0.00082,54092.0,54086.0,1.498052]
[1725641604257,0.00082,54092.0,54086.0,0.3699]
[1725641604258,0.00182,54087.0,54086.0,0.3699]
[1725641604686,0.00182,54087.0,54086.0,0.3719]
[1725641604899,0.00182,54087.0,54086.0,0.55679]
[1725641605331,0.00182,54087.0,54086.0,0.926571]
[1725641605576,0.00082,54087.0,54086.0,0.939571]
[1725641606021,0.00082,54087.0,54086.0,1.309352]
[1725641606237,0.00082,54087.0,54086.0,1.679133]
[1725641606488,0.00182,54087.0,54086.0,1.689133]
[1725641606933,0.00082,54087.0,54086.0,1.679133]
[1725641607369,0.00182,54087.0,54086.0,1.885833]
[1725641607811,0.00182,54087.0,54086.0,1.99570557]
[1725641608038,0.00182,54087.0,54086.0,1.516052]
[1725641609158,0.00182,54087.0,54086.0,1.885833]
[1725641609806,0.000815,54090.0,54088.0,0.944717]
[1725641610019,0.000815,54090.0,54088.0,2.37723035]
[1725641610237,0.000815,54090.0,54089.0,1.34361]
[1725641610477,0.000815,54090.0,54089.0,1.52833239]
[1725641610745,0.000815,54090.0,54089.0,0.9267]
[1725641610959,0.000815,54090.0,54089.0,1.06424463]
[1725641611602,0.00081,54099.0,54098.0,1.59614196]
[1725641611812,0.00081,54099.0,54098.0,1.96574335]
[1725641612027,0.000704,54110.0,54109.0,0.92636]
[1725641612255,0.000704,54110.0,54109.0,1.94061596]
[1725641612533,0.000704,54110.0,54109.0,2.37030035]
[1725641612763,0.000704,54110.0,54109.0,2.67108671]
[1725641612972,0.000704,54110.0,54109.0,1.59997996]
[1725641613182,0.000704,54110.0,54109.0,1.96960396]
[1725641613399,0.000704,54110.0,54109.0,2.48633432]
[1725641613609,0.000704,54110.0,54109.0,2.45870658]
[1725641613825,0.000704,54110.0,54109.0,2.08908258]
[1725641614044,0.000704,54110.0,54109.0,2.20926704]
[1725641614295,0.000704,54110.0,54109.0,2.6063438]
[1725641614531,0.000704,54110.0,54109.0,2.52398035]
[1725641614739,0.000704,54110.0,54109.0,2.60628077]
[1725641615169,0.000704,54110.0,54109.0,2.52598035]
[1725641615376,0.000704,54110.0,54109.0,2.65734887]
[1725641615620,0.000704,54110.0,54109.0,2.57510035]
[1725641615912,0.00013,54125.0,54124.0,1.39784596]
[1725641616123,0.00013,54125.0,54124.0,1.94879835]
[1725641616345,0.00013,54125.0,54124.0,0.3665]
[1725641616793,0.00013,54125.0,54124.0,0.0003]
[1725641618534,0.184887,54125.0,54124.0,0.0003]
[1725641618953,0.554402,54125.0,54124.0,0.0083]
[1725641619163,0.923917,54125.0,54124.0,0.0083]
[1725641619391,0.00013,54125.0,54124.0,0.0003]
[1725641619600,0.00013,54125.0,54124.0,0.0083]
[1725641619815,0.554402,54125.0,54124.0,0.0083]
[1725641620273,0.923917,54125.0,54124.0,0.031]
[1725641620486,1.966732,54125.0,54124.0,0.008]
[1725641620941,1.967546,54125.0,54124.0,0.008]
[1725641621157,1.967546,54125.0,54109.0,0.55460836]
[1725641621158,0.369587,54115.0,54109.0,0.55460836]
[1725641621392,0.369587,54115.0,54114.0,0.0003]
[1725641621393,0.184791,54115.0,54114.0,0.0003]
[1725641621598,0.674244,54125.0,54124.0,0.001]
[1725641621599,1.232516,54125.0,54124.0,0.001]
[1725641622088,0.12792603,54125.0,54122.0,0.0003]
[1725641622271,0.000944,54125.0,54122.0,0.0003]
[1725641622539,0.000944,54125.0,54124.0,0.591701]
[1725641622746,0.000944,54125.0,54124.0,0.36981239]
[1725641622962,0.000944,54125.0,54124.0,0.76233339]
[1725641623171,0.000944,54125.0,54124.0,1.13185439]
[1725641623395,0.000944,54125.0,54124.0,0.0233]
[1725641623835,0.000944,54125.0,54124.0,0.20806]
[1725641624253,0.006944,54125.0,54124.0,0.20906]
[1725641624472,0.006944,54125.0,54124.0,1.26333339]
[1725641624689,0.006944,54125.0,54124.0,1.29945339]
[1725641624690,0.000944,54125.0,54124.0,1.29945339]
[1725641624901,0.000944,54125.0,54124.0,2.03849539]
[1725641625111,0.000944,54125.0,54124.0,0.76733339]
[1725641625337,0.000944,54125.0,54124.0,0.0283]
[1725641625551,0.000944,54125.0,54124.0,0.20806]
[1725641626054,0.000944,54125.0,54124.0,0.0353]
[1725641626274,0.000944,54125.0,54124.0,0.22006]
[1725641626483,0.000944,54125.0,54124.0,0.40481239]
[1725641626707,0.000944,54125.0,54124.0,0.77433339]
[1725641626914,0.000944,54125.0,54124.0,0.40481239]
[1725641627337,0.000944,54125.0,54124.0,1.60559835]
[1725641627540,0.000944,54125.0,54124.0,0.0233]
[1725641627765,0.000944,54125.0,54124.0,1.80747193]
[1725641627972,0.00082,54145.0,54139.0,0.184709]
[1725641628180,0.00082,54145.0,54141.0,0.0003]
[1725641628390,0.185509,54145.0,54141.0,0.0003]
[1725641628652,0.00082,54145.0,54141.0,0.0003]
[1725641628864,0.00082,54145.0,54144.0,0.184992]
[1725641629074,0.00082,54145.0,54144.0,0.207992]
[1725641629503,0.00082,54145.0,54144.0,0.577377]
[1725641629717,0.00082,54145.0,54144.0,0.0233]
[1725641630002,0.00082,54145.0,54144.0,0.0003]
[1725641630272,0.554887,54145.0,54144.0,0.0233]
[1725641630513,0.554887,54145.0,54141.0,0.0003]
[1725641630514,0.184699,54142.0,54141.0,0.0003]
[1725641630733,0.923512,54141.0,54140.0,0.0003]
[1725641630944,0.384,54144.0,54139.0,0.0013]
[1725641630945,1.479542,54140.0,54139.0,0.0013]
[1725641631166,1.479542,54140.0,54139.0,0.001]
[1725641631384,1.948954,54140.0,54139.0,0.001]
[1725641631600,0.184743,54129.0,54128.0,0.0003]
[1725641631821,0.2866,54140.0,54125.0,0.0003]
[1725641631822,0.184754,54126.0,54125.0,0.0003]
[1725641632030,0.92377,54126.0,54125.0,0.0003]
[1725641632450,0.3657,54130.0,54120.0,0.00034]
[1725641632665,0.184771,54121.0,54120.0,4e-05]
[1725641632879,1.284155,54121.0,54120.0,4e-05]
[1725641633089,1.942697,54121.0,54120.0,4e-05]
[1725641633296,1.757926,54121.0,54120.0,4e-05]
[1725641633532,2.312239,54121.0,54120.0,4e-05]
[1725641633987,1.942697,54121.0,54120.0,4e-05]
[1725641634672,0.184764,54124.0,54121.0,0.0003]
[1725641634919,0.369516,54125.0,54124.0,0.0003]
[1725641634920,0.21250126,54125.0,54124.0,0.0003]
[1725641635180,0.554302,54122.0,54121.0,0.0003]
[1725641635685,0.369515,54125.0,54121.0,0.0003]
[1725641635928,0.551794,54129.0,54121.0,0.0003]
[1725641635929,0.554302,54122.0,54121.0,0.0003]
[1725641636175,0.923837,54122.0,54121.0,0.0003]
[1725641636651,0.554282,54124.0,54123.0,0.0003]
[1725641636887,0.923803,54124.0,54123.0,0.0003]
[1725641637123,0.554282,54124.0,54123.0,0.0003]
[1725641637617,0.923803,54124.0,54123.0,0.0003]
[1725641638065,0.184771,54121.0,54120.0,0.00034]
[1725641638287,1.293397,54121.0,54120.0,4e-05]
[1725641638757,1.586197,54121.0,54120.0,4e-05]
[1725641639303,2.42948296,54121.0,54120.0,4e-05]
[1725641639543,2.82816066,54121.0,54120.0,0.00104]
[1725641639807,0.184839,54101.0,54100.0,0.00034]
[1725641640341,0.554517,54101.0,54100.0,0.57129239]
[1725641640592,0.923922,54117.0,54116.0,0.0003]
[1725641640834,0.1,54120.0,54115.0,0.0003]
[1725641640835,0.554364,54116.0,54115.0,0.0003]
[1725641641076,1.293516,54116.0,54115.0,0.0003]
[1725641641595,1.04386766,54115.0,54114.0,0.0003]
[1725641641841,0.85907566,54115.0,54114.0,0.0003]
[1725641642095,0.92399,54113.0,54112.0,0.0003]
[1725641642630,0.554394,54113.0,54112.0,0.0003]
[1725641642846,0.369678,54101.0,54100.0,0.00034]
[1725641643079,0.554517,54101.0,54100.0,4e-05]
[1725641643316,0.924195,54101.0,54100.0,4e-05]
[1725641643534,0.924195,54101.0,54100.0,0.00034]
[1725641643757,1.293873,54101.0,54100.0,4e-05]
[1725641643991,2.152451,54101.0,54100.0,4e-05]
[1725641644203,2.344551,54101.0,54100.0,4e-05]
[1725641644640,1.974873,54101.0,54100.0,4e-05]
[1725641645080,1.978873,54101.0,54100.0,4e-05]
[1725641645369,1.028195,54101.0,54100.0,4e-05]
[1725641645569,0.1921,54107.0,54100.0,4e-05]
[1725641645570,0.1921,54114.0,54101.0,0.0003]
[1725641645784,0.1,54109.0,54101.0,0.0003]
[1725641646004,0.554508,54102.0,54101.0,0.0003]
[1725641646227,0.184836,54102.0,54101.0,0.0003]
[1725641646659,0.554508,54102.0,54101.0,0.0003]
[1725641647517,0.92418,54102.0,54101.0,0.0003]
[1725641648363,0.92418,54102.0,54101.0,0.0033]
[1725641648574,0.92418,54102.0,54101.0,0.0263]
[1725641648809,0.554508,54102.0,54101.0,0.0263]
[1725641649023,0.554508,54102.0,54101.0,0.0233]
[1725641649235,0.92418,54102.0,54101.0,0.0003]
[1725641650363,1.293852,54102.0,54101.0,0.0033]
[1725641650580,0.92418,54102.0,54101.0,0.0263]
[1725641650808,0.92418,54102.0,54101.0,0.0233]
[1725641651013,0.554476,54105.0,54104.0,0.0003]
[1725641651915,1.293778,54105.0,54104.0,0.0003]
[1725641652135,0.1,54113.0,54100.0,0.02304]
[1725641652136,0.924145,54104.0,54103.0,0.0003]
[1725641652374,1.293803,54104.0,54103.0,0.0003]
[1725641653781,0.554517,54101.0,54100.0,4e-05]